[Event "Early-Titled-Tuesday-Blitz-June-18-2024"]
[Site "Chess.com"]
[Date "2024.06.18"]
[Round "11"]
[White "CristianS27"]
[Black "Herzog2012"]
[Result "1-0"]
[WhiteElo "2502"]
[BlackElo "2606"]
[TimeControl "180+1"]
[EndTime "10:07:33 PDT"]
[Termination "CristianS27 won on time"]

1. e4 {[%clk 0:03:00.9]} 1... c5 {[%clk 0:02:57]} 2. Nf3 {[%clk 0:03:00.1]} 2...
d6 {[%clk 0:02:57.2]} 3. d4 {[%clk 0:02:59.8]} 3... cxd4 {[%clk 0:02:58.1]} 4.
Nxd4 {[%clk 0:03:00.3]} 4... Nf6 {[%clk 0:02:58.6]} 5. Nc3 {[%clk 0:03:01]} 5...
Nc6 {[%clk 0:02:59.2]} 6. Be3 {[%clk 0:03:01.5]} 6... e5 {[%clk 0:02:54.7]} 7.
Nf3 {[%clk 0:03:00.8]} 7... h6 {[%clk 0:02:42.3]} 8. Bc4 {[%clk 0:02:59.8]} 8...
Be6 {[%clk 0:02:36.6]} 9. Bb3 {[%clk 0:02:58.6]} 9... Be7 {[%clk 0:02:31.2]} 10.
O-O {[%clk 0:02:52.5]} 10... O-O {[%clk 0:02:29.8]} 11. Qe2 {[%clk 0:02:52]}
11... a6 {[%clk 0:02:10]} 12. Rfd1 {[%clk 0:02:51.5]} 12... Rc8 {[%clk 0:02:09]}
13. Nh4 {[%clk 0:02:45.7]} 13... Qd7 {[%clk 0:01:57.3]} 14. Rac1 {[%clk
0:02:28.2]} 14... Kh7 {[%clk 0:01:30.1]} 15. h3 {[%clk 0:01:23.9]} 15... Na5
{[%clk 0:01:23.5]} 16. Qf3 {[%clk 0:01:22.7]} 16... Nxb3 {[%clk 0:01:20.1]} 17.
axb3 {[%clk 0:01:17.9]} 17... b5 {[%clk 0:00:36.1]} 18. Nf5 {[%clk 0:01:03.4]}
18... Bxf5 {[%clk 0:00:35.4]} 19. exf5 {[%clk 0:01:02.7]} 19... b4 {[%clk
0:00:28.6]} 20. Nd5 {[%clk 0:00:59.9]} 20... Nxd5 {[%clk 0:00:27.9]} 21. Rxd5
{[%clk 0:01:00.3]} 21... Rc7 {[%clk 0:00:28]} 22. Qe4 {[%clk 0:00:53.6]} 22...
Kg8 {[%clk 0:00:25.8]} 23. Rcd1 {[%clk 0:00:52.5]} 23... Qc6 {[%clk 0:00:24.1]}
24. R1d2 {[%clk 0:00:41.6]} 24... Qb7 {[%clk 0:00:18.1]} 25. Qg4 {[%clk
0:00:32.9]} 25... Kh7 {[%clk 0:00:17.9]} 26. f6 {[%clk 0:00:29.1]} 26... Bxf6
{[%clk 0:00:17.2]} 27. Rxd6 {[%clk 0:00:29.7]} 27... Rc6 {[%clk 0:00:12.7]} 28.
Qe4+ {[%clk 0:00:28.3]} 28... Kg8 {[%clk 0:00:07.7]} 29. Qxc6 {[%clk 0:00:26.2]}
1-0

[Event "Early-Titled-Tuesday-Blitz-June-18-2024"]
[Site "Chess.com"]
[Date "2024.06.18"]
[Round "11"]
[White "Bkmzzzzz"]
[Black "Gyulamiryan-koryun"]
[Result "0-1"]
[WhiteElo "2376"]
[BlackElo "1664"]
[TimeControl "180+1"]
[EndTime "10:07:36 PDT"]
[Termination "Gyulamiryan-koryun won on time"]

1. e4 {[%clk 0:03:00.9]} 1... c5 {[%clk 0:02:59.6]} 2. Nf3 {[%clk 0:02:59.4]}
2... d6 {[%clk 0:02:59.6]} 3. d4 {[%clk 0:02:58.8]} 3... cxd4 {[%clk 0:03:00.1]}
4. Qxd4 {[%clk 0:02:59.5]} 4... Nf6 {[%clk 0:03:00.7]} 5. Nc3 {[%clk 0:02:58.7]}
5... a6 {[%clk 0:02:58.2]} 6. Be3 {[%clk 0:02:57.7]} 6... Nc6 {[%clk 0:02:57.9]}
7. Qb6 {[%clk 0:02:57.4]} 7... Bd7 {[%clk 0:02:48.4]} 8. O-O-O {[%clk
0:02:34.6]} 8... Qxb6 {[%clk 0:02:42.8]} 9. Bxb6 {[%clk 0:02:35.5]} 9... g6
{[%clk 0:02:40.6]} 10. Bc4 {[%clk 0:02:24.5]} 10... Bg7 {[%clk 0:02:40]} 11.
Rhe1 {[%clk 0:02:25]} 11... O-O {[%clk 0:02:37.8]} 12. e5 {[%clk 0:02:10.4]}
12... dxe5 {[%clk 0:02:33.8]} 13. Nxe5 {[%clk 0:02:11.3]} 13... Nxe5 {[%clk
0:02:34]} 14. Rxe5 {[%clk 0:02:12.1]} 14... Bc6 {[%clk 0:02:27.8]} 15. Rxe7
{[%clk 0:01:53.6]} 15... Bxg2 {[%clk 0:02:26.7]} 16. Nd5 {[%clk 0:01:45.1]}
16... Rac8 {[%clk 0:02:13.9]} 17. b3 {[%clk 0:01:37.4]} 17... Rfe8 {[%clk
0:01:49.3]} 18. Rxb7 {[%clk 0:01:36.9]} 18... Bf3 {[%clk 0:01:23.8]} 19. Rd3
{[%clk 0:01:07.6]} 19... Re1+ {[%clk 0:01:20.9]} 20. Kd2 {[%clk 0:00:17.7]}
20... Rd1+ {[%clk 0:01:15.7]} 21. Ke3 {[%clk 0:00:18.1]} 21... Rxd3+ {[%clk
0:01:10.6]} 22. cxd3 {[%clk 0:00:16.3]} 22... Bxd5 {[%clk 0:01:09.5]} 23. Bxd5
{[%clk 0:00:15.5]} 23... Nxd5+ {[%clk 0:01:10.4]} 24. Ke4 {[%clk 0:00:14.8]}
24... Nc3+ {[%clk 0:01:03.9]} 25. Kf3 {[%clk 0:00:11.8]} 25... Nxa2 {[%clk
0:01:03.4]} 26. Be3 {[%clk 0:00:10.9]} 26... a5 {[%clk 0:00:59.9]} 27. Ra7
{[%clk 0:00:10.7]} 27... Nb4 {[%clk 0:00:50.1]} 28. d4 {[%clk 0:00:09.3]} 28...
Nc6 {[%clk 0:00:48]} 29. Ra6 {[%clk 0:00:06.9]} 29... Nxd4+ {[%clk 0:00:48]} 30.
Ke4 {[%clk 0:00:07.4]} 30... Nxb3 {[%clk 0:00:47.5]} 31. Rb6 {[%clk 0:00:06.2]}
31... Nc5+ {[%clk 0:00:46]} 32. Kd5 {[%clk 0:00:05]} 32... Ne6 {[%clk
0:00:45.6]} 33. Ra6 {[%clk 0:00:04.4]} 33... Bc3 {[%clk 0:00:44.5]} 34. Ra7
{[%clk 0:00:04]} 34... Bb4 {[%clk 0:00:41]} 35. Bh6 {[%clk 0:00:01.3]} 35... Bf8
{[%clk 0:00:40.5]} 0-1

[Event "Early-Titled-Tuesday-Blitz-June-18-2024"]
[Site "Chess.com"]
[Date "2024.06.18"]
[Round "11"]
[White "Manukyan_Artak"]
[Black "MANOJ_MISHRA123"]
[Result "1-0"]
[WhiteElo "2503"]
[BlackElo "2228"]
[TimeControl "180+1"]
[EndTime "10:07:37 PDT"]
[Termination "Manukyan_Artak won on time"]

1. e4 {[%clk 0:03:00.9]} 1... Nf6 {[%clk 0:02:58.8]} 2. Nc3 {[%clk 0:02:59.8]}
2... d5 {[%clk 0:02:58.3]} 3. exd5 {[%clk 0:02:59.7]} 3... Nxd5 {[%clk
0:02:59.2]} 4. Bc4 {[%clk 0:03:00]} 4... c6 {[%clk 0:02:59]} 5. Qf3 {[%clk
0:02:59.8]} 5... Nf6 {[%clk 0:02:57]} 6. h3 {[%clk 0:02:54.8]} 6... Nbd7 {[%clk
0:02:56.9]} 7. d4 {[%clk 0:02:54]} 7... Nb6 {[%clk 0:02:55.1]} 8. Bb3 {[%clk
0:02:53.5]} 8... Nbd5 {[%clk 0:02:54.4]} 9. Nge2 {[%clk 0:02:51.7]} 9... g6
{[%clk 0:02:41]} 10. g4 {[%clk 0:02:47.1]} 10... h6 {[%clk 0:02:24.8]} 11. Bd2
{[%clk 0:02:30.6]} 11... Bg7 {[%clk 0:02:23]} 12. O-O-O {[%clk 0:02:30.1]} 12...
a5 {[%clk 0:02:10.1]} 13. Nxd5 {[%clk 0:02:22.5]} 13... Nxd5 {[%clk 0:02:09.7]}
14. c4 {[%clk 0:02:18.2]} 14... Nb4 {[%clk 0:01:56.1]} 15. Kb1 {[%clk
0:02:14.3]} 15... a4 {[%clk 0:01:52.7]} 16. Bxb4 {[%clk 0:02:10.8]} 16... axb3
{[%clk 0:01:52.4]} 17. axb3 {[%clk 0:02:11.7]} 17... O-O {[%clk 0:01:51.6]} 18.
Nc3 {[%clk 0:02:05.3]} 18... Qb6 {[%clk 0:01:34.6]} 19. Bxe7 {[%clk 0:02:00.2]}
19... Re8 {[%clk 0:01:30.3]} 20. Na4 {[%clk 0:01:52.2]} 20... Rxa4 {[%clk
0:01:27.9]} 21. Bc5 {[%clk 0:01:51.2]} 21... Qa5 {[%clk 0:00:54.2]} 22. bxa4
{[%clk 0:01:47.9]} 22... Qxa4 {[%clk 0:00:54.3]} 23. Rhe1 {[%clk 0:01:48.1]}
23... Be6 {[%clk 0:00:48.9]} 24. d5 {[%clk 0:01:40.7]} 24... cxd5 {[%clk
0:00:33.2]} 25. cxd5 {[%clk 0:01:39.6]} 25... Ra8 {[%clk 0:00:27.3]} 26. Qa3
{[%clk 0:01:29.8]} 26... Qxa3 {[%clk 0:00:09]} 27. Bxa3 {[%clk 0:01:28.7]} 27...
Bd7 {[%clk 0:00:09.1]} 28. Re7 {[%clk 0:01:25.5]} 28... Ba4 {[%clk 0:00:09.3]}
29. Rc1 {[%clk 0:01:22]} 29... b5 {[%clk 0:00:07.5]} 30. Rcc7 {[%clk 0:01:17.5]}
30... Rb8 {[%clk 0:00:07.5]} 31. Rxf7 {[%clk 0:01:10.6]} 31... Be5 {[%clk
0:00:06.4]} 32. Rb7 {[%clk 0:00:59]} 32... Rc8 {[%clk 0:00:04.7]} 33. Bb4 {[%clk
0:00:52]} 33... Bc2+ {[%clk 0:00:02.6]} 34. Ka2 {[%clk 0:00:49.3]} 34... Ra8+
{[%clk 0:00:01.5]} 35. Ra7 {[%clk 0:00:49.5]} 1-0

[Event "Early-Titled-Tuesday-Blitz-June-18-2024"]
[Site "Chess.com"]
[Date "2024.06.18"]
[Round "11"]
[White "Adrian-thorsen"]
[Black "mortngabriel"]
[Result "0-1"]
[WhiteElo "2321"]
[BlackElo "2475"]
[TimeControl "180+1"]
[EndTime "10:07:39 PDT"]
[Termination "mortngabriel won by resignation"]

1. e4 {[%clk 0:02:54.7]} 1... c5 {[%clk 0:02:58.8]} 2. Nf3 {[%clk 0:02:54.1]}
2... a6 {[%clk 0:02:58.2]} 3. c3 {[%clk 0:02:51]} 3... d5 {[%clk 0:02:58]} 4.
exd5 {[%clk 0:02:50.3]} 4... Qxd5 {[%clk 0:02:58.9]} 5. d4 {[%clk 0:02:50.6]}
5... e6 {[%clk 0:02:57.7]} 6. Be2 {[%clk 0:02:47.5]} 6... Nf6 {[%clk 0:02:57]}
7. O-O {[%clk 0:02:47.8]} 7... Nbd7 {[%clk 0:02:54.3]} 8. Bf4 {[%clk 0:02:42.9]}
8... cxd4 {[%clk 0:02:43]} 9. cxd4 {[%clk 0:02:42.8]} 9... Be7 {[%clk
0:02:41.9]} 10. Nc3 {[%clk 0:02:43.1]} 10... Qa5 {[%clk 0:02:41.6]} 11. Rc1
{[%clk 0:02:39.2]} 11... O-O {[%clk 0:02:38.7]} 12. Bd3 {[%clk 0:02:37.9]} 12...
b5 {[%clk 0:02:17.6]} 13. a3 {[%clk 0:02:20.6]} 13... Bb7 {[%clk 0:02:16.2]} 14.
Qe2 {[%clk 0:02:20.7]} 14... Rac8 {[%clk 0:02:15.6]} 15. Ne4 {[%clk 0:02:15.5]}
15... Nxe4 {[%clk 0:02:12.8]} 16. Bxe4 {[%clk 0:02:16.4]} 16... Bxe4 {[%clk
0:02:13.1]} 17. Qxe4 {[%clk 0:02:17.3]} 17... Nf6 {[%clk 0:02:13.8]} 18. Qd3
{[%clk 0:02:17.4]} 18... Nd5 {[%clk 0:02:07.8]} 19. Bd2 {[%clk 0:02:13.4]} 19...
Qa4 {[%clk 0:01:54.4]} 20. Ne5 {[%clk 0:02:09.8]} 20... Bd6 {[%clk 0:01:42]} 21.
b3 {[%clk 0:00:59.8]} 21... Qxa3 {[%clk 0:01:41.7]} 22. Ra1 {[%clk 0:01:00.1]}
22... Qb2 {[%clk 0:01:38.9]} 23. Rxa6 {[%clk 0:00:57.5]} 23... Bxe5 {[%clk
0:01:28.2]} 24. dxe5 {[%clk 0:00:58.4]} 24... b4 {[%clk 0:01:18.6]} 25. Ra4
{[%clk 0:00:37.3]} 25... Rfd8 {[%clk 0:00:37.9]} 26. f4 {[%clk 0:00:09.7]} 26...
Nb6 {[%clk 0:00:36.7]} 27. Qe3 {[%clk 0:00:07.6]} 27... Nxa4 {[%clk 0:00:36.5]}
28. Bxb4 {[%clk 0:00:07.9]} 28... Qd4 {[%clk 0:00:34.3]} 29. Qxd4 {[%clk
0:00:07.6]} 29... Rxd4 {[%clk 0:00:33.9]} 30. Bd6 {[%clk 0:00:07.6]} 30... Nc3
{[%clk 0:00:32.8]} 31. f5 {[%clk 0:00:07.5]} 31... Ne4 {[%clk 0:00:27.4]} 32.
fxe6 {[%clk 0:00:07.1]} 32... Nxd6 {[%clk 0:00:26.6]} 33. exd6 {[%clk
0:00:07.1]} 33... fxe6 {[%clk 0:00:26.3]} 0-1

[Event "Early-Titled-Tuesday-Blitz-June-18-2024"]
[Site "Chess.com"]
[Date "2024.06.18"]
[Round "11"]
[White "cycygogne"]
[Black "JJDAREK"]
[Result "0-1"]
[WhiteElo "2235"]
[BlackElo "2360"]
[TimeControl "180+1"]
[EndTime "10:07:40 PDT"]
[Termination "JJDAREK won by resignation"]

1. e4 {[%clk 0:03:00.9]} 1... d6 {[%clk 0:02:59.6]} 2. d4 {[%clk 0:03:00.5]}
2... g6 {[%clk 0:02:58.4]} 3. Nc3 {[%clk 0:03:00.6]} 3... Bg7 {[%clk 0:02:58.2]}
4. Bg5 {[%clk 0:03:00.8]} 4... a6 {[%clk 0:02:57.2]} 5. a4 {[%clk 0:02:59.7]}
5... Nc6 {[%clk 0:02:56]} 6. Nf3 {[%clk 0:02:55.9]} 6... Bg4 {[%clk 0:02:54.6]}
7. Be3 {[%clk 0:02:52.1]} 7... e5 {[%clk 0:02:53.3]} 8. d5 {[%clk 0:02:50.4]}
8... Nd4 {[%clk 0:02:52.5]} 9. h3 {[%clk 0:02:44.3]} 9... Bxf3 {[%clk
0:02:34.9]} 10. gxf3 {[%clk 0:02:45.2]} 10... f5 {[%clk 0:02:32.5]} 11. Be2
{[%clk 0:02:41.4]} 11... Qh4 {[%clk 0:02:16.5]} 12. Qd2 {[%clk 0:02:33]} 12...
f4 {[%clk 0:01:55.7]} 13. Bxd4 {[%clk 0:02:32.9]} 13... exd4 {[%clk 0:01:56]}
14. Na2 {[%clk 0:02:33]} 14... Ne7 {[%clk 0:01:41.9]} 15. Nc1 {[%clk 0:02:32.1]}
15... O-O {[%clk 0:01:41.1]} 16. Nd3 {[%clk 0:02:32.2]} 16... Be5 {[%clk
0:01:34.7]} 17. O-O-O {[%clk 0:02:18.1]} 17... b5 {[%clk 0:01:32.8]} 18. a5
{[%clk 0:02:18.5]} 18... c6 {[%clk 0:01:29.9]} 19. Rdg1 {[%clk 0:02:03.7]} 19...
cxd5 {[%clk 0:01:27.4]} 20. Rg4 {[%clk 0:02:00.2]} 20... Qf6 {[%clk 0:01:24.5]}
21. h4 {[%clk 0:01:54.8]} 21... dxe4 {[%clk 0:01:22.8]} 22. fxe4 {[%clk
0:01:54.7]} 22... f3 {[%clk 0:01:22]} 23. Bd1 {[%clk 0:01:47.6]} 23... h5 {[%clk
0:01:12.7]} 24. Rg5 {[%clk 0:01:30.2]} 24... Bf4 {[%clk 0:00:58.2]} 25. Nxf4
{[%clk 0:01:30]} 25... Qxf4 {[%clk 0:00:59.1]} 26. Rhg1 {[%clk 0:01:29.7]} 26...
Qxd2+ {[%clk 0:00:57]} 27. Kxd2 {[%clk 0:01:30.6]} 27... Kh7 {[%clk 0:00:54.9]}
28. Kd3 {[%clk 0:01:27.7]} 28... Rac8 {[%clk 0:00:52.8]} 29. Kxd4 {[%clk
0:01:27]} 29... Rc4+ {[%clk 0:00:51]} 30. Kd3 {[%clk 0:01:27.3]} 30... Nc6
{[%clk 0:00:47.2]} 31. b3 {[%clk 0:01:11.4]} 31... Rc5 {[%clk 0:00:33.5]} 32.
Rxc5 {[%clk 0:01:03.1]} 32... dxc5 {[%clk 0:00:34.4]} 33. Rg5 {[%clk 0:01:03.2]}
33... Rd8+ {[%clk 0:00:30.4]} 34. Rd5 {[%clk 0:01:03.3]} 34... Nb4+ {[%clk
0:00:29.6]} 35. Ke3 {[%clk 0:01:01.8]} 35... Nxd5+ {[%clk 0:00:29.4]} 36. exd5
{[%clk 0:01:02.3]} 36... Rxd5 {[%clk 0:00:29.9]} 37. Bxf3 {[%clk 0:01:02.9]}
37... Re5+ {[%clk 0:00:25.8]} 38. Kf4 {[%clk 0:01:02.8]} 38... Re1 {[%clk
0:00:24.1]} 39. Bb7 {[%clk 0:01:02.1]} 39... Ra1 {[%clk 0:00:24.3]} 40. Bxa6
{[%clk 0:01:02.2]} 40... Rxa5 {[%clk 0:00:24.8]} 41. Bb7 {[%clk 0:01:02.4]}
41... c4 {[%clk 0:00:23.9]} 42. bxc4 {[%clk 0:01:02.3]} 42... bxc4 {[%clk
0:00:24.8]} 43. Be4 {[%clk 0:01:01.1]} 43... c3 {[%clk 0:00:23.4]} 44. Bd3
{[%clk 0:01:01.1]} 44... Ra4+ {[%clk 0:00:21.9]} 45. Ke3 {[%clk 0:00:59.2]}
45... Rxh4 {[%clk 0:00:21.2]} 46. f3 {[%clk 0:00:56.7]} 46... Ra4 {[%clk
0:00:20]} 47. Be4 {[%clk 0:00:56.1]} 47... h4 {[%clk 0:00:19.4]} 48. Kf2 {[%clk
0:00:56.3]} 48... Kh6 {[%clk 0:00:18.9]} 49. Kg2 {[%clk 0:00:56.7]} 49... Kg5
{[%clk 0:00:19.2]} 50. Kh3 {[%clk 0:00:57.3]} 50... Rxe4 {[%clk 0:00:17.9]} 51.
fxe4 {[%clk 0:00:57.3]} 51... Kf4 {[%clk 0:00:18]} 52. Kxh4 {[%clk 0:00:54.7]}
52... Kxe4 {[%clk 0:00:18.2]} 53. Kg5 {[%clk 0:00:55]} 53... Ke3 {[%clk
0:00:18.7]} 54. Kxg6 {[%clk 0:00:55.9]} 54... Kd2 {[%clk 0:00:19.1]} 55. Kf5
{[%clk 0:00:56.8]} 55... Kxc2 {[%clk 0:00:19.9]} 56. Ke4 {[%clk 0:00:57.7]}
56... Kd2 {[%clk 0:00:20.2]} 0-1

[Event "Early-Titled-Tuesday-Blitz-June-18-2024"]
[Site "Chess.com"]
[Date "2024.06.18"]
[Round "11"]
[White "GMAneta"]
[Black "Kgli1m"]
[Result "1/2-1/2"]
[WhiteElo "2350"]
[BlackElo "2099"]
[TimeControl "180+1"]
[EndTime "10:07:43 PDT"]
[Termination "Game drawn by repetition"]

1. d4 {[%clk 0:03:00.8]} 1... d5 {[%clk 0:02:55.6]} 2. c4 {[%clk 0:02:50.9]}
2... c6 {[%clk 0:02:55.5]} 3. Nf3 {[%clk 0:02:50.3]} 3... a6 {[%clk 0:02:55.7]}
4. e3 {[%clk 0:02:47.4]} 4... dxc4 {[%clk 0:02:55.8]} 5. Bxc4 {[%clk 0:02:46.9]}
5... b5 {[%clk 0:02:55.2]} 6. Bd3 {[%clk 0:02:46.9]} 6... Bb7 {[%clk 0:02:55.4]}
7. O-O {[%clk 0:02:46.5]} 7... e6 {[%clk 0:02:55.7]} 8. e4 {[%clk 0:02:39.9]}
8... c5 {[%clk 0:02:55.3]} 9. Re1 {[%clk 0:02:32]} 9... cxd4 {[%clk 0:02:53.9]}
10. e5 {[%clk 0:02:30.6]} 10... Ne7 {[%clk 0:02:52.9]} 11. Nxd4 {[%clk
0:02:28.8]} 11... Ng6 {[%clk 0:02:40]} 12. Nc3 {[%clk 0:02:25]} 12... Bb4 {[%clk
0:02:27.8]} 13. Qg4 {[%clk 0:02:20.3]} 13... O-O {[%clk 0:02:27.2]} 14. Bxg6
{[%clk 0:02:16.3]} 14... hxg6 {[%clk 0:02:25.8]} 15. Nxe6 {[%clk 0:02:16.2]}
15... Qd7 {[%clk 0:02:19.1]} 16. Qxb4 {[%clk 0:02:12.2]} 16... Qxe6 {[%clk
0:02:18.9]} 17. Bf4 {[%clk 0:02:10.4]} 17... Nc6 {[%clk 0:02:16.3]} 18. Qd6
{[%clk 0:02:05.1]} 18... Rfe8 {[%clk 0:02:11.5]} 19. Rad1 {[%clk 0:02:01]} 19...
Rad8 {[%clk 0:02:09.5]} 20. Qxe6 {[%clk 0:01:56.5]} 20... Rxe6 {[%clk
0:02:08.4]} 21. Rxd8+ {[%clk 0:01:56.1]} 21... Nxd8 {[%clk 0:02:07.9]} 22. Rd1
{[%clk 0:01:56.1]} 22... Nc6 {[%clk 0:01:46.4]} 23. Rd7 {[%clk 0:01:54.2]} 23...
Re7 {[%clk 0:01:46.4]} 24. Rxe7 {[%clk 0:01:49.9]} 24... Nxe7 {[%clk 0:01:46.4]}
25. f3 {[%clk 0:01:50.3]} 25... Nd5 {[%clk 0:01:40.5]} 26. Ne2 {[%clk
0:01:42.2]} 26... Kf8 {[%clk 0:01:18.2]} 27. Bg5 {[%clk 0:01:37.7]} 27... Nb4
{[%clk 0:01:18.1]} 28. a3 {[%clk 0:01:35.5]} 28... Nd3 {[%clk 0:01:18]} 29. e6
{[%clk 0:01:30.2]} 29... f6 {[%clk 0:01:16.2]} 30. Be3 {[%clk 0:01:26.2]} 30...
Ke7 {[%clk 0:01:15.8]} 31. Nd4 {[%clk 0:01:19.9]} 31... Nxb2 {[%clk 0:01:07.5]}
32. h4 {[%clk 0:01:19.8]} 32... Nc4 {[%clk 0:01:06.5]} 33. Bc1 {[%clk
0:01:16.1]} 33... Bd5 {[%clk 0:01:05.9]} 34. h5 {[%clk 0:01:16.2]} 34... gxh5
{[%clk 0:00:48.1]} 35. Nf5+ {[%clk 0:01:15]} 35... Kxe6 {[%clk 0:00:48]} 36.
Nxg7+ {[%clk 0:01:15]} 36... Ke5 {[%clk 0:00:41.8]} 37. Nxh5 {[%clk 0:01:15.9]}
37... a5 {[%clk 0:00:41]} 38. Kf2 {[%clk 0:01:15.3]} 38... b4 {[%clk 0:00:41.2]}
39. axb4 {[%clk 0:01:14.6]} 39... axb4 {[%clk 0:00:41.3]} 40. f4+ {[%clk
0:01:12.1]} 40... Kf5 {[%clk 0:00:37.3]} 41. Ng3+ {[%clk 0:01:11.2]} 41... Kg4
{[%clk 0:00:32.5]} 42. Nf1 {[%clk 0:01:00.4]} 42... b3 {[%clk 0:00:25.9]} 43.
Ne3+ {[%clk 0:01:00.2]} 43... Nxe3 {[%clk 0:00:24.8]} 44. Kxe3 {[%clk
0:01:01.1]} 44... Bxg2 {[%clk 0:00:23.6]} 45. Bb2 {[%clk 0:01:01.1]} 45... f5
{[%clk 0:00:23.4]} 46. Bd4 {[%clk 0:00:58.7]} 46... Be4 {[%clk 0:00:23.2]} 47.
Bb2 {[%clk 0:00:58.7]} 47... Bc2 {[%clk 0:00:23.2]} 48. Bc3 {[%clk 0:00:58.7]}
48... Kg3 {[%clk 0:00:23.2]} 49. Bb2 {[%clk 0:00:58.7]} 49... Kg2 {[%clk
0:00:23.4]} 50. Ke2 {[%clk 0:00:58.9]} 50... Kg3 {[%clk 0:00:23.4]} 51. Ke3
{[%clk 0:00:59]} 51... Bd1 {[%clk 0:00:22.4]} 52. Kd2 {[%clk 0:00:56.8]} 52...
Bc2 {[%clk 0:00:21.3]} 53. Ke3 {[%clk 0:00:56.9]} 1/2-1/2

[Event "Early-Titled-Tuesday-Blitz-June-18-2024"]
[Site "Chess.com"]
[Date "2024.06.18"]
[Round "11"]
[White "Polish_fighter3000"]
[Black "Sanan_Sjugirov"]
[Result "1-0"]
[WhiteElo "3082"]
[BlackElo "2950"]
[TimeControl "180+1"]
[EndTime "10:07:49 PDT"]
[Termination "Polish_fighter3000 won on time"]

1. d4 {[%clk 0:03:00.9]} 1... Nf6 {[%clk 0:02:57.3]} 2. c4 {[%clk 0:02:59.6]}
2... e6 {[%clk 0:02:57.3]} 3. Nf3 {[%clk 0:03:00.2]} 3... d5 {[%clk 0:02:54.2]}
4. Nc3 {[%clk 0:03:00.6]} 4... Nbd7 {[%clk 0:02:49.6]} 5. Bg5 {[%clk 0:02:58.1]}
5... h6 {[%clk 0:02:46.5]} 6. Bh4 {[%clk 0:02:57.1]} 6... Be7 {[%clk 0:02:46.1]}
7. e3 {[%clk 0:02:56.7]} 7... O-O {[%clk 0:02:46.1]} 8. Qc2 {[%clk 0:02:55.1]}
8... c5 {[%clk 0:02:41.3]} 9. dxc5 {[%clk 0:02:52.7]} 9... dxc4 {[%clk
0:01:57.7]} 10. c6 {[%clk 0:02:48.4]} 10... bxc6 {[%clk 0:01:58.6]} 11. Bxc4
{[%clk 0:02:47.7]} 11... Nb6 {[%clk 0:01:55.9]} 12. Be2 {[%clk 0:02:44]} 12...
Nbd5 {[%clk 0:01:55.9]} 13. Rd1 {[%clk 0:02:00.4]} 13... Qa5 {[%clk 0:01:43.2]}
14. Nd4 {[%clk 0:01:58.2]} 14... Bd7 {[%clk 0:01:37]} 15. Nb3 {[%clk 0:01:44.6]}
15... Qb4 {[%clk 0:01:33.5]} 16. Rd4 {[%clk 0:01:42.7]} 16... Qb8 {[%clk
0:01:21.8]} 17. Bg3 {[%clk 0:01:34.6]} 17... e5 {[%clk 0:01:18.5]} 18. O-O
{[%clk 0:01:30.3]} 18... Be6 {[%clk 0:01:13.9]} 19. Na5 {[%clk 0:01:02.5]} 19...
Nb4 {[%clk 0:00:19.8]} 20. Qa4 {[%clk 0:01:02.3]} 20... Rc8 {[%clk 0:00:08.7]}
21. a3 {[%clk 0:00:55.5]} 21... Nbd5 {[%clk 0:00:09.1]} 22. Nxc6 {[%clk
0:00:52.6]} 22... Qxb2 {[%clk 0:00:07.8]} 23. Nxd5 {[%clk 0:00:42.2]} 23... Nxd5
{[%clk 0:00:08.2]} 24. Rxd5 {[%clk 0:00:42.1]} 24... Rxc6 {[%clk 0:00:06]} 25.
Qxc6 {[%clk 0:00:39.5]} 25... Rc8 {[%clk 0:00:05.3]} 26. Qb5 {[%clk 0:00:39.6]}
26... Rb8 {[%clk 0:00:03.3]} 27. Qxb2 {[%clk 0:00:14.9]} 27... Rxb2 {[%clk
0:00:04.2]} 28. Rxe5 {[%clk 0:00:15.5]} 28... Rxe2 {[%clk 0:00:04.2]} 29. Ra5
{[%clk 0:00:16]} 29... h5 {[%clk 0:00:02.5]} 30. h4 {[%clk 0:00:14.7]} 30... Bc4
{[%clk 0:00:01]} 31. Rxa7 {[%clk 0:00:14.5]} 31... Bf6 {[%clk 0:00:01.1]} 32.
Rc1 {[%clk 0:00:14.8]} 1-0

[Event "Early-Titled-Tuesday-Blitz-June-18-2024"]
[Site "Chess.com"]
[Date "2024.06.18"]
[Round "11"]
[White "Forge13"]
[Black "HajiyevKanan"]
[Result "1-0"]
[WhiteElo "2678"]
[BlackElo "2534"]
[TimeControl "180+1"]
[EndTime "10:07:49 PDT"]
[Termination "Forge13 won on time"]

1. e4 {[%clk 0:03:00.9]} 1... c6 {[%clk 0:02:58.9]} 2. Nf3 {[%clk 0:02:59.2]}
2... d5 {[%clk 0:02:59.8]} 3. d3 {[%clk 0:02:59.7]} 3... a6 {[%clk 0:03:00.5]}
4. Nbd2 {[%clk 0:02:58.2]} 4... Bg4 {[%clk 0:03:00.1]} 5. h3 {[%clk 0:02:56.8]}
5... Bh5 {[%clk 0:02:59.8]} 6. g4 {[%clk 0:02:56.4]} 6... Bg6 {[%clk 0:02:59.3]}
7. Ne5 {[%clk 0:02:56.8]} 7... Nd7 {[%clk 0:02:58.5]} 8. Nxd7 {[%clk 0:02:44.7]}
8... Qxd7 {[%clk 0:02:58.1]} 9. f4 {[%clk 0:02:43.1]} 9... f6 {[%clk 0:02:26.3]}
10. Qe2 {[%clk 0:02:31.4]} 10... O-O-O {[%clk 0:02:22.7]} 11. Bg2 {[%clk
0:02:30.8]} 11... e5 {[%clk 0:02:14.3]} 12. f5 {[%clk 0:01:49.9]} 12... Bf7
{[%clk 0:02:13.3]} 13. Nf1 {[%clk 0:01:46.3]} 13... Bc5 {[%clk 0:02:11]} 14. c3
{[%clk 0:01:38.1]} 14... Ne7 {[%clk 0:01:58.9]} 15. b4 {[%clk 0:01:34.5]} 15...
Ba7 {[%clk 0:01:56]} 16. a4 {[%clk 0:01:34.8]} 16... dxe4 {[%clk 0:01:50.6]} 17.
Bxe4 {[%clk 0:01:35.7]} 17... Nd5 {[%clk 0:01:33.3]} 18. Qb2 {[%clk 0:01:21.7]}
18... Rhe8 {[%clk 0:01:10.3]} 19. b5 {[%clk 0:01:20.6]} 19... Nf4 {[%clk
0:00:30.4]} 20. bxa6 {[%clk 0:00:41.8]} 20... bxa6 {[%clk 0:00:28.3]} 21. Bxf4
{[%clk 0:00:40.8]} 21... exf4 {[%clk 0:00:28.3]} 22. Nd2 {[%clk 0:00:41]} 22...
Rxe4+ {[%clk 0:00:16.8]} 23. dxe4 {[%clk 0:00:36.8]} 23... Be3 {[%clk
0:00:13.9]} 24. Rh2 {[%clk 0:00:36.6]} 24... Qd3 {[%clk 0:00:07.7]} 25. Rb1
{[%clk 0:00:20.2]} 25... Kd7 {[%clk 0:00:04]} 26. Qb7+ {[%clk 0:00:18.4]} 26...
Ke8 {[%clk 0:00:04.6]} 27. Rb2 {[%clk 0:00:15.2]} 27... Bc4 {[%clk 0:00:03.9]}
28. Qxc6+ {[%clk 0:00:15.1]} 28... Kf8 {[%clk 0:00:03.6]} 29. Qc7 {[%clk
0:00:14]} 29... Bxd2+ {[%clk 0:00:01]} 30. Kd1 {[%clk 0:00:13]} 30... Qf1+
{[%clk 0:00:01.3]} 31. Kc2 {[%clk 0:00:13.9]} 31... Bd3+ {[%clk 0:00:01.2]} 32.
Kb3 {[%clk 0:00:14.2]} 32... Bc4+ {[%clk 0:00:01]} 33. Kb4 {[%clk 0:00:14.8]}
1-0